fUST/lending_fUST_20240506
["ID","MTS","AMOUNT","RATE_DAILY","PERIOD"]
[326473480,1714966233903,-500.0,0.00019178,2]
[326473481,1714966233913,-500.0,0.00019178,2]
[326473482,1714966233922,-500.0,0.00019178,2]
[326473483,1714966233932,-500.0,0.00019178,2]
[326473484,1714966233941,-500.0,0.00019178,2]
[326473485,1714966233951,-500.0,0.00019178,2]
[326473486,1714966233962,-500.0,0.00019178,2]
[326473487,1714966233972,-500.0,0.00019178,2]
[326473488,1714966233982,-500.0,0.00019178,2]
[326473489,1714966233992,-500.0,0.00019178,2]
[326473490,1714966234002,-500.0,0.00019178,2]
[326473491,1714966234012,-506.29045478,0.00019178,2]
[326473492,1714966234021,-500.0,0.00019178,2]
[326473493,1714966234031,-340.89461795,0.00019178,2]
[326473494,1714966234041,-500.0,0.00019178,2]
[326473495,1714966234051,-500.0,0.00019178,2]
[326473496,1714966234075,-1201.08,0.00019178,2]
[326473497,1714966234087,-500.0,0.00019178,2]
[326473498,1714966234098,-670.25,0.00019178,2]
[326473499,1714966234109,-520.36,0.00019178,2]
[326473500,1714966234119,-500.0,0.00019178,2]
[326473501,1714966234131,-744.59,0.00019178,2]
[326473502,1714966234141,-278.62713299,0.00019178,2]
[326473503,1714966234150,-500.0,0.00019178,2]
[326473504,1714966234160,-500.0,0.00019178,2]
[326473505,1714966234170,-500.0,0.00019178,2]
[326473506,1714966234179,-392.52604898,0.00019178,2]
[326473507,1714966234190,-501.0645235,0.00019178,2]
[326473508,1714966234201,-226.8867607,0.00019178,2]
[326473509,1714966234211,-500.0,0.00019178,2]
[326473510,1714966234227,-500.0,0.00019178,2]
[326473511,1714966234238,-500.0,0.00019178,2]
[326473512,1714966234248,-500.0,0.00019178,2]
[326473513,1714966234257,-387.00522091,0.00019178,2]
[326473609,1714966244324,-322.57449892,0.00019112,2]
[326473610,1714966244336,-170.42550108,0.00019112,2]
[326473611,1714966244345,-112.99477909,0.00019178,2]
[326473612,1714966244354,-151.847229,0.00019178,2]
[326473613,1714966244364,-500.0,0.00019178,2]
[326473614,1714966244373,-500.0,0.00019178,2]
[326473615,1714966244382,-500.0,0.00019178,2]
[326473616,1714966244392,-500.0,0.00019178,2]
[326473617,1714966244402,-481.88595248,0.00019178,2]
[326473618,1714966244411,-500.0,0.00019178,2]
[326473619,1714966244420,-500.0,0.00019178,2]
[326473620,1714966244430,-500.0,0.00019178,2]
[326473621,1714966244439,-365.34659351,0.00019178,2]
[326473635,1714966248368,-134.65340649,0.00019178,2]
[326473636,1714966248377,-595.56734971,0.00019178,2]
[326473640,1714966849197,386.690271,0.0001589,2]
[326473642,1714967148124,-769.6507319,0.00017258,2]
[326473643,1714967148145,-240.0,0.00018002,2]
[326473644,1714967148166,-865.98535753,0.00018248,2]
[326473645,1714967148488,-203.3168522,0.000189,2]
[326473646,1714967148509,-176.44293851,0.00018997,2]
[326473647,1714967148530,-155.38469057,0.00019,2]
[326473648,1714967148550,-153.0,0.00019,2]
[326473649,1714967148570,-153.0,0.00019,2]
[326473650,1714967148588,-153.0,0.00019,2]
[326473651,1714967148770,-153.0,0.00019,2]
[326473652,1714967148792,-153.0,0.00019,2]
[326473653,1714967148812,-153.0,0.00019,2]
[326473654,1714967148833,-153.0,0.00019,2]
[326473655,1714967148852,-153.0,0.00019,2]
[326473656,1714967148871,-153.0,0.00019,2]
[326473657,1714967148891,-153.0,0.00019,2]
[326473658,1714967148911,-153.0,0.00019,2]
[326473659,1714967148929,-153.0,0.00019,2]
[326473660,1714967148948,-309.2515924,0.00019,2]
[326473661,1714967148968,-376.11964243,0.00019,2]
[326473662,1714967226434,-53.35787327,0.00019,2]
[326473663,1714967226599,-632.29926788,0.0001916,2]
[326473664,1714967227150,-643.47,0.00019168,3]
[326473665,1714967227172,-1285.98167756,0.00019176,2]
[326473666,1714967227192,-793.30130103,0.00019176,2]
[326473667,1714967227218,-606.28225274,0.00019176,2]
[326473668,1714967227242,-775.85190421,0.00019176,2]
[326473669,1714967227262,-206.48477514,0.00019176,2]
[326473670,1714967227282,-1379.2633025,0.00019176,2]
[326473671,1714967227302,-154.70605849,0.00019176,2]
[326473672,1714967227510,-187.3573345,0.00019177,2]
[326473673,1714967227665,-815.983981,0.00019177,2]
[326473674,1714967227961,-60.6194234,0.00019178,2]
[326473675,1714967228270,-141.01849501,0.00019178,2]
[326473676,1714967228291,-500.0,0.00019178,2]
[326473677,1714967228313,-500.0,0.00019178,2]
[326473678,1714967228334,-500.0,0.00019178,2]
[326473679,1714967228355,-500.0,0.00019178,2]
[326473680,1714967228376,-393.02612948,0.00019178,2]
[326473681,1714967228402,-255.92891816,0.00019178,2]
[326473682,1714967228422,-500.0,0.00019178,2]
[326473683,1714967228442,-500.0,0.00019178,2]
[326473684,1714967228464,-500.0,0.00019178,2]
[326473685,1714967228484,-500.0,0.00019178,2]
[326473686,1714967228505,-568.7,0.00019178,2]
[326473687,1714967228524,-500.0,0.00019178,2]
[326473688,1714967228544,-500.0,0.00019178,2]
[326473689,1714967228563,-157.43427684,0.00019178,2]
[326473690,1714967368760,347.361186,0.0001589,2]
[326473691,1714967396881,2597.7949054,0.00018194,2]
[326473771,1714967438817,-192.62924351,0.000189,2]
[326473773,1714967438826,-201.63791842,0.00019178,2]
[326473775,1714967438835,-153.74970535,0.00019178,2]
[326473850,1714967564237,12952.0,0.000225,30]
[326473851,1714968427160,-152.638814,0.00019078,2]
[326473852,1714968435109,-1847.361186,0.00019078,2]
[326473853,1714968435131,-1544.12278652,0.000191,2]
[326473854,1714968435152,-3082.83443543,0.000191,2]
[326473855,1714968440131,-3722.79807922,0.000191,2]
[326473856,1714968454163,-271.88381601,0.000191,2]
[326473857,1714968504017,164.27828,0.0001589,2]
[326473948,1714968754639,3035.98402564,9.999e-05,2]
[326473949,1714968777204,1538.32795493,0.00015,2]
[326473950,1714968819675,1147.18679257,0.00015,2]
[326473951,1714968902106,10286.05110284,0.0001,2]
[326473953,1714969626121,-6440.74929362,0.00018061,2]
[326473954,1714969635334,-569.57874348,0.00018061,2]
[326473955,1714969635356,-416.02149608,0.000189,2]
[326473956,1714969635376,-5646.70154135,0.00019,2]
[326473957,1714969637107,-500.0,0.00019,2]
[326473959,1714969792150,1147.18679257,0.00015,2]
[326474084,1714969863100,176.77057911,0.00015,2]
[326474085,1714969891758,150.545,0.00018728,2]
[326474086,1714969896261,480.2207562,0.0001807,2]
[326474087,1714970014825,367.355757,0.0001589,2]
[326474088,1714970024132,929.6379252,0.00014,2]
[326474089,1714970547440,329.993126,0.0001589,2]
[326474090,1714970735948,1425.13119939,9.999e-05,2]
[326474091,1714970766826,1147.18679257,0.00015,2]
[326474092,1714970770830,816.12984113,9.999e-05,2]
[326474093,1714970832261,-250.0,0.00017859,2]
[326474094,1714970832282,-10588.79453399,0.00018026,2]
[326474095,1714970834431,-250.00000001,0.00018026,2]
[326474096,1714970834640,-267.33114884,0.00018217,2]
[326474097,1714970835223,-604.49379352,0.00018899,2]
[326474098,1714970835530,-277.34766405,0.000189,2]
[326474099,1714970835817,-359.3578733,0.000189,2]
[326474100,1714970836580,-306.0,0.000189,2]
[326474101,1714970836986,-201.6379184,0.00019,2]
[326474102,1714970837235,-4443.9074786,0.00019,2]
[326474103,1714970837910,-157.09549985,0.00019,2]
[326474104,1714970838149,-157.09549983,0.00019026,2]
[326474105,1714970838476,-157.09549983,0.00019052,2]
[326474106,1714970838762,-157.09549983,0.00019078,2]
[326474107,1714970839167,-12832.26261493,0.000191,2]
[326474108,1714970839614,-1822.07924628,0.000191,2]
[326474109,1714970847219,-16829.16244316,0.000191,2]
[326474110,1714970847391,-156.0,0.000191,2]
[326474111,1714970847429,-153.0,0.000191,2]
[326474112,1714970847450,-153.0,0.000191,2]
[326474113,1714970847470,-153.0,0.000191,2]
[326474114,1714970847492,-204.1392147,0.000191,2]
[326474115,1714970847513,-153.0,0.000191,2]
[326474116,1714970847533,-153.0,0.000191,2]
[326474117,1714970847558,-306.8732505,0.000191,2]
[326474118,1714970847578,-153.0,0.000191,2]
[326474119,1714970847598,-204.1392147,0.000191,2]
[326474120,1714970847618,-153.0,0.000191,2]
[326474121,1714970847642,-153.0,0.000191,2]
[326474122,1714970847662,-153.0,0.000191,2]
[326474123,1714970847683,-153.0,0.000191,2]
[326474124,1714970847705,-153.0,0.000191,2]
[326474125,1714970847725,-153.0,0.000191,2]
[326474126,1714970847746,-153.0,0.000191,2]
[326474127,1714970847766,-153.0,0.000191,2]
[326474128,1714970847786,-153.0,0.000191,2]
[326474129,1714970847807,-204.1392147,0.000191,2]
[326474130,1714970847827,-140.59448173,0.000191,2]
[326474131,1714970945312,-273.71076604,0.00017258,2]
[326474132,1714970961997,2597.7949054,0.00018158,2]
[326474184,1714971032710,-12.40551827,0.000191,2]
[326474186,1714971032720,-153.0,0.000191,2]
[326474188,1714971032730,-153.0,0.000191,2]
[326474190,1714971032739,-204.1392147,0.000191,2]
[326474192,1714971032748,-153.0,0.000191,2]
[326474194,1714971032758,-153.0,0.000191,2]
[326474196,1714971032767,-153.0,0.000191,2]
[326474198,1714971032776,-390.3869168,0.000191,2]
[326474200,1714971032786,-202.4132091,0.000191,2]
[326474219,1714971032965,-429.7295646,0.000191,2]
[326474221,1714971032975,-153.0,0.000191,2]
[326474223,1714971032984,-153.0,0.000191,2]
[326474225,1714971032993,-153.0,0.000191,2]
[326474227,1714971033002,-253.00916,0.000191,2]
[326474229,1714971033011,-370.9806454,0.000191,2]
[326474231,1714971033020,-151.0,0.000191,2]
[326474233,1714971033029,-228.841233,0.000191,2]
[326474235,1714971033038,-151.0,0.000191,2]
[326474237,1714971033048,-151.0,0.000191,2]
[326474239,1714971033056,-151.0,0.000191,2]
[326474241,1714971033065,-324.1417,0.000191,2]
[326474243,1714971033075,-324.1417,0.000191,2]
[326474245,1714971033084,-324.1417,0.000191,2]
[326474246,1714971033092,-324.1417,0.000191,2]
[326474248,1714971033102,-151.383237,0.000191,2]
[326474249,1714971033115,-151.0,0.000191,2]
[326474250,1714971033125,-180.352667,0.000191,2]
[326474251,1714971033134,-286.377992,0.000191,2]
[326474252,1714971033143,-286.377992,0.000191,2]
[326474253,1714971033151,-286.377992,0.000191,2]
[326474255,1714971033160,-286.377992,0.000191,2]
[326474257,1714971033169,-286.377992,0.000191,2]
[326474259,1714971033178,-286.377992,0.000191,2]
[326474260,1714971033187,-286.377992,0.000191,2]
[326474261,1714971033197,-286.377992,0.000191,2]
[326474262,1714971033206,-286.377992,0.000191,2]
[326474263,1714971033218,-286.377992,0.000191,2]
[326474265,1714971033228,-286.377992,0.000191,2]
[326474266,1714971033236,-286.377992,0.000191,2]
[326474267,1714971033246,-368.068766,0.000191,2]
[326474268,1714971033255,-368.068766,0.000191,2]
[326474269,1714971033265,-368.068766,0.000191,2]
[326474270,1714971033274,-368.068766,0.000191,2]
[326474271,1714971033283,-368.068766,0.000191,2]
[326474272,1714971033292,-368.068766,0.000191,2]
[326474273,1714971033302,-368.068766,0.000191,2]
[326474274,1714971033311,-368.068766,0.000191,2]
[326474275,1714971033323,-368.068766,0.000191,2]
[326474276,1714971033333,-368.068766,0.000191,2]
[326474277,1714971033342,-368.068766,0.000191,2]
[326474278,1714971033351,-368.068766,0.000191,2]
[326474279,1714971033361,-558.715383,0.000191,2]
[326474280,1714971033370,-558.715383,0.000191,2]
[326474281,1714971033379,-558.715383,0.000191,2]
[326474282,1714971033388,-558.715383,0.000191,2]
[326474283,1714971033398,-558.715383,0.000191,2]
[326474284,1714971033407,-558.715383,0.000191,2]
[326474285,1714971033416,-151.0,0.000191,2]
[326474286,1714971033426,-151.0,0.000191,2]
[326474287,1714971033435,-151.0,0.000191,2]
[326474288,1714971033444,-151.0,0.000191,2]
[326474289,1714971033453,-151.0,0.000191,2]
[326474290,1714971033464,-558.715383,0.000191,2]
[326474291,1714971033473,-285.941344,0.000191,2]
[326474292,1714971033482,-558.715383,0.000191,2]
[326474293,1714971033491,-558.715383,0.000191,2]
[326474294,1714971033501,-558.715383,0.000191,2]
[326474295,1714971033510,-558.715383,0.000191,2]
[326474296,1714971033520,-558.715383,0.000191,2]
[326474297,1714971033529,-166.104222,0.000191,2]
[326474298,1714971033539,-729.680694,0.000191,2]
[326474299,1714971033548,-729.680694,0.000191,2]
[326474300,1714971033559,-729.680694,0.000191,2]
[326474301,1714971033568,-729.680694,0.000191,2]
[326474302,1714971033577,-729.680694,0.000191,2]
[326474303,1714971033587,-729.680694,0.000191,2]
[326474304,1714971033596,-729.680694,0.000191,2]
[326474305,1714971033607,-729.680694,0.000191,2]
[326474306,1714971033617,-729.680694,0.000191,2]
[326474307,1714971033627,-729.680694,0.000191,2]
[326474308,1714971033636,-729.680694,0.000191,2]
[326474309,1714971033646,-729.680694,0.000191,2]
[326474310,1714971033655,-729.680694,0.000191,2]
[326474311,1714971033664,-729.680694,0.000191,2]
[326474312,1714971033677,-729.680694,0.000191,2]
[326474313,1714971033686,-729.680694,0.000191,2]
[326474314,1714971033696,-729.680694,0.000191,2]
[326474315,1714971033705,-729.680694,0.000191,2]
[326474316,1714971033717,-729.680694,0.000191,2]
[326474317,1714971033726,-729.680701,0.000191,2]
[326474318,1714971033735,-152.935096,0.000191,2]
[326474319,1714971033744,-151.0,0.000191,2]
[326474320,1714971033753,-151.0,0.000191,2]
[326474321,1714971033762,-151.0,0.000191,2]
[326474322,1714971033772,-151.0,0.000191,2]
[326474323,1714971033781,-151.0,0.000191,2]
[326474324,1714971033790,-151.0,0.000191,2]
[326474325,1714971033799,-194.624997,0.000191,2]
[326474326,1714971033808,-282.544309,0.000191,2]
[326474327,1714971033818,-282.544309,0.000191,2]
[326474328,1714971033827,-282.544309,0.000191,2]
[326474329,1714971033837,-282.544309,0.000191,2]
[326474330,1714971033851,-282.544309,0.000191,2]
[326474331,1714971033860,-282.544309,0.000191,2]
[326474332,1714971033887,-282.544309,0.000191,2]
[326474333,1714971033915,-282.544309,0.000191,2]
[326474334,1714971033924,-282.544309,0.000191,2]
[326474335,1714971033936,-282.544309,0.000191,2]
[326474336,1714971033945,-282.544309,0.000191,2]
[326474337,1714971033954,-282.544309,0.000191,2]
[326474338,1714971033964,-55.75854388,0.000191,2]
[326474339,1714971033996,-95.24145612,0.000191,2]
[326474340,1714971034006,-151.847229,0.000191,2]
[326474341,1714971034015,-444.806164,0.000191,2]
[326474342,1714971034024,-444.806164,0.000191,2]
[326474343,1714971034035,-444.806164,0.000191,2]
[326474344,1714971034044,-444.806164,0.000191,2]
[326474345,1714971034054,-444.806164,0.000191,2]
[326474346,1714971034063,-444.806164,0.000191,2]
[326474347,1714971034072,-444.806164,0.000191,2]
[326474348,1714971034081,-444.806164,0.000191,2]
[326474349,1714971034090,-444.806164,0.000191,2]
[326474350,1714971034099,-444.806164,0.000191,2]
[326474351,1714971034108,-444.806164,0.000191,2]
[326474352,1714971034117,-444.806164,0.000191,2]
[326474353,1714971034126,-493.0,0.00019101,2]
[326474354,1714971034135,-150.0,0.00019101,2]
[326474355,1714971034144,-620.61496339,0.00019112,2]
[326474356,1714971034154,-162.227867,0.00019112,2]
[326474357,1714971034163,-324.1417,0.00019112,2]
[326474358,1714971034179,-324.1417,0.00019112,2]
[326474359,1714971034188,-324.1417,0.00019112,2]
[326474360,1714971034197,-324.1417,0.00019112,2]
[326474361,1714971034206,-286.377992,0.00019112,2]
[326474362,1714971034218,-286.377992,0.00019112,2]
[326474363,1714971034227,-286.377992,0.00019112,2]
[326474364,1714971034236,-286.377992,0.00019112,2]
[326474365,1714971034245,-286.377992,0.00019112,2]
[326474366,1714971034254,-286.377992,0.00019112,2]
[326474367,1714971034263,-286.377992,0.00019112,2]
[326474368,1714971034272,-286.377991,0.00019112,2]
[326474369,1714971034281,-368.068766,0.00019112,2]
[326474370,1714971034290,-368.068766,0.00019112,2]
[326474371,1714971034300,-368.068766,0.00019112,2]
[326474372,1714971034309,-368.068766,0.00019112,2]
[326474373,1714971034320,-368.068766,0.00019112,2]
[326474374,1714971034329,-368.068766,0.00019112,2]
[326474375,1714971034338,-368.068766,0.00019112,2]
[326474376,1714971034348,-368.06875926,0.00019112,2]
[326474377,1714971034357,-558.715383,0.00019112,2]
[326474378,1714971034366,-558.715383,0.00019112,2]
[326474379,1714971034375,-558.715383,0.00019112,2]
[326474380,1714971034384,-558.715383,0.00019112,2]
[326474381,1714971034393,-558.715383,0.00019112,2]
[326474382,1714971034402,-558.715383,0.00019112,2]
[326474383,1714971034422,-558.715383,0.00019112,2]
[326474384,1714971034432,-558.715383,0.00019112,2]
[326474385,1714971034442,-151.0,0.00019112,2]
[326474386,1714971034452,-151.0,0.00019112,2]
[326474387,1714971034461,-151.0,0.00019112,2]
[326474388,1714971034478,-151.0,0.00019112,2]
[326474389,1714971034488,-282.544309,0.00019112,2]
[326474390,1714971034498,-282.544309,0.00019112,2]
[326474391,1714971034507,-282.544309,0.00019112,2]
[326474392,1714971034517,-282.544309,0.00019112,2]
[326474393,1714971034527,-282.544309,0.00019112,2]
[326474394,1714971034536,-282.544309,0.00019112,2]
[326474395,1714971034546,-282.544309,0.00019112,2]
[326474396,1714971034555,-282.544311,0.00019112,2]
[326474397,1714971034565,-444.806164,0.00019112,2]
[326474398,1714971034574,-444.806164,0.00019112,2]
[326474399,1714971034584,-444.806164,0.00019112,2]
[326474400,1714971034594,-444.806164,0.00019112,2]
[326474401,1714971034603,-444.806164,0.00019112,2]
[326474402,1714971034612,-444.806164,0.00019112,2]
[326474403,1714971034627,-444.806164,0.00019112,2]
[326474404,1714971034637,-444.806166,0.00019112,2]
[326474405,1714971034647,-211.521,0.00019138,2]
[326474406,1714971034657,-151.0,0.00019168,2]
[326474407,1714971034667,-507.21562743,0.00019175,2]
[326474408,1714971034676,-716.54710117,0.00019176,2]
[326474409,1714971034687,-891.27337061,0.00019176,2]
[326474410,1714971034697,-187.0832455,0.00019176,2]
[326474411,1714971034707,-401.06612068,0.00019176,2]
[326474412,1714971034718,-183.8470855,0.00019176,2]
[326474413,1714971034727,-155.03235823,0.00019176,2]
[326474414,1714971034737,-1906.58736986,0.00019176,2]
[326474415,1714971034747,-166.96587077,0.00019176,2]
[326474416,1714971034757,-1079.20558224,0.00019176,2]
[326474417,1714971034766,-151.0,0.00019176,2]
[326474418,1714971034776,-151.300216,0.00019176,2]
[326474419,1714971034787,-151.0,0.00019176,2]
[326474420,1714971034796,-151.0,0.00019176,2]
[326474421,1714971034806,-151.0,0.00019176,2]
[326474422,1714971034817,-152.162177,0.00019176,2]
[326474423,1714971034826,-151.884222,0.00019176,2]
[326474424,1714971034836,-273.10152157,0.00019176,2]
[326474425,1714971034846,-324.1417,0.00019176,2]
[326474426,1714971034856,-324.1417,0.00019176,2]
[326474427,1714971034867,-324.1417,0.00019176,2]
[326474428,1714971034879,-324.1417,0.00019176,2]
[326474429,1714971034889,-324.1417,0.00019176,2]
[326474430,1714971034899,-324.1417,0.00019176,2]
[326474431,1714971034909,-324.1417,0.00019176,2]
[326474432,1714971034919,-324.1417,0.00019176,2]
[326474433,1714971034931,-324.1417,0.00019176,2]
[326474434,1714971034941,-324.1417,0.00019176,2]
[326474435,1714971034951,-324.1417,0.00019176,2]
[326474436,1714971034961,-324.141708,0.00019176,2]
[326474437,1714971034971,-793.30130103,0.00019176,2]
[326474438,1714971034980,-187.3573345,0.00019176,2]
[326474439,1714971034989,-206.48477514,0.00019176,2]
[326474440,1714971035000,-1379.2633025,0.00019176,2]
[326474441,1714971035010,-154.70605849,0.00019176,2]
[326474442,1714971035020,-815.68359027,0.00019176,2]
[326474443,1714971035029,-1284.81959474,0.00019176,2]
[326474444,1714971035039,-606.07142082,0.00019176,2]
[326474445,1714971035048,-154.86968131,0.00019177,2]
[326474446,1714971035058,-867.52131648,0.00019177,2]
[326474447,1714971035068,-1915.42485718,0.00019178,2]
[326474448,1714971035077,-194.29744131,0.00019178,2]
[326474449,1714971035088,-454.88084004,0.00019178,2]
[326474450,1714971035098,-500.0,0.00019178,2]
[326474451,1714971035107,-500.0,0.00019178,2]
[326474452,1714971035117,-335.0,0.00019178,2]
[326474453,1714971035127,-500.0,0.00019178,2]
[326474454,1714971035136,-500.0,0.00019178,2]
[326474455,1714971035146,-500.0,0.00019178,2]
[326474456,1714971035156,-500.0,0.00019178,2]
[326474457,1714971035166,-500.0,0.00019178,2]
[326474458,1714971035175,-295.43532463,0.00019178,2]
[326474459,1714971035185,-500.0,0.00019178,2]
[326474460,1714971035194,-166.0,0.00019178,2]
[326474461,1714971035204,-500.0,0.00019178,2]
[326474462,1714971035215,-176.20375884,0.00019178,2]
[326474463,1714971035224,-297.52677991,0.00019178,2]
[326474464,1714971035235,-500.0,0.00019178,2]
[326474465,1714971035244,-351.76301643,0.00019178,2]
[326474466,1714971035254,-500.0,0.00019178,2]
[326474467,1714971035266,-429.202671,0.00019178,2]
[326474468,1714971035276,-500.0,0.00019178,2]
[326474469,1714971035285,-500.0,0.00019178,2]
[326474470,1714971035295,-500.0,0.00019178,2]
[326474471,1714971035304,-500.0,0.00019178,2]
[326474472,1714971035314,-324.24202329,0.00019178,2]
[326474473,1714971035323,-502.34574439,0.00019178,2]
[326474474,1714971035333,-160.64781492,0.00019178,2]
[326474475,1714971035342,-500.0,0.00019178,2]
[326474476,1714971035352,-500.0,0.00019178,2]
[326474477,1714971035362,-500.0,0.00019178,2]
[326474478,1714971035371,-500.0,0.00019178,2]
[326474479,1714971035381,-500.0,0.00019178,2]
[326474480,1714971035392,-481.88595248,0.00019178,2]
[326474481,1714971035402,-1263.54,0.00019178,2]
[326474482,1714971035412,-500.0,0.00019178,2]
[326474483,1714971035422,-813.96,0.00019178,2]
[326474484,1714971035432,-500.0,0.00019178,2]
[326474485,1714971035441,-500.0,0.00019178,2]
[326474486,1714971035451,-500.0,0.00019178,2]
[326474487,1714971035461,-500.0,0.00019178,2]
[326474488,1714971035471,-500.0,0.00019178,2]
[326474489,1714971035480,-713.57,0.00019178,2]
[326474490,1714971035490,-500.0,0.00019178,2]
[326474491,1714971035499,-500.0,0.00019178,2]
[326474492,1714971035509,-500.0,0.00019178,2]
[326474493,1714971035519,-500.0,0.00019178,2]
[326474494,1714971035529,-500.0,0.00019178,2]
[326474495,1714971035538,-500.0,0.00019178,2]
[326474496,1714971035548,-500.0,0.00019178,2]
[326474497,1714971035558,-500.0,0.00019178,2]
[326474498,1714971035567,-500.0,0.00019178,2]
[326474499,1714971035577,-549.07273919,0.00019178,2]
[326474500,1714971035587,-500.0,0.00019178,2]
[326474501,1714971035596,-500.0,0.00019178,2]
[326474502,1714971035606,-500.0,0.00019178,2]
[326474503,1714971035615,-691.59,0.00019178,2]
[326474504,1714971035625,-500.0,0.00019178,2]
[326474505,1714971035634,-500.0,0.00019178,2]
[326474506,1714971035644,-500.0,0.00019178,2]
[326474507,1714971035655,-500.0,0.00019178,2]
[326474508,1714971035664,-500.0,0.00019178,2]
[326474509,1714971035674,-500.0,0.00019178,2]
[326474510,1714971035684,-501.42953644,0.00019178,2]
[326474511,1714971035694,-505.68163674,0.00019178,2]
[326474512,1714971035704,-300.0,0.00019178,2]
[326474513,1714971035715,-500.0,0.00019178,2]
[326474514,1714971035725,-802.62989883,0.00019178,2]
[326474515,1714971035735,-500.0,0.00019178,2]
[326474516,1714971035744,-500.0,0.00019178,2]
[326474517,1714971035754,-500.0,0.00019178,2]
[326474518,1714971035763,-500.0,0.00019178,2]
[326474519,1714971035772,-702.78,0.00019178,2]
[326474520,1714971035783,-500.0,0.00019178,2]
[326474521,1714971035793,-500.0,0.00019178,2]
[326474522,1714971035803,-522.16032309,0.00019178,2]
[326474523,1714971035813,-510.1228227,0.00019178,2]
[326474524,1714971035822,-500.0,0.00019178,2]
[326474525,1714971035831,-500.0,0.00019178,2]
[326474526,1714971035842,-500.0,0.00019178,2]
[326474527,1714971035854,-500.0,0.00019178,2]
[326474528,1714971035864,-500.0,0.00019178,2]
[326474529,1714971035873,-500.0,0.00019178,2]
[326474530,1714971035883,-500.0,0.00019178,2]
[326474531,1714971035893,-500.0,0.00019178,2]
[326474532,1714971035903,-500.0,0.00019178,2]
[326474533,1714971035916,-639.89,0.00019178,2]
[326474534,1714971035929,-500.0,0.00019178,2]
[326474535,1714971035939,-438.68724545,0.00019178,2]
[326474536,1714971035949,-154.25780173,0.00019178,2]
[326474537,1714971035958,-500.0,0.00019178,2]
[326474538,1714971035969,-500.0,0.00019178,2]
[326474539,1714971035981,-500.0,0.00019178,2]
[326474540,1714971036156,-500.0,0.00019178,2]
[326474541,1714971036166,-500.0,0.00019178,2]
[326474542,1714971036176,-500.0,0.00019178,2]
[326474543,1714971036185,-500.0,0.00019178,2]
[326474544,1714971036195,-500.0,0.00019178,2]
[326474545,1714971036204,-151.01395916,0.00019178,2]
[326474546,1714971036214,-2264.13,0.00019178,2]
[326474547,1714971036224,-500.0,0.00019178,2]
[326474548,1714971036233,-500.0,0.00019178,2]
[326474549,1714971036253,-261.49372351,0.00019178,2]
[326474550,1714971036262,-500.0,0.00019178,2]
[326474551,1714971036272,-201.89915562,0.00019178,2]
[326474552,1714971036282,-500.0,0.00019178,2]
[326474553,1714971036291,-151.30797165,0.00019178,2]
[326474554,1714971036300,-536.53150754,0.00019178,2]
[326474555,1714971036310,-500.0,0.00019178,2]
[326474556,1714971036319,-196.32818894,0.00019178,2]
[326474557,1714971036329,-500.0,0.00019178,2]